fUST/lending_fUST_20240721
["ID","MTS","AMOUNT","RATE_DAILY","PERIOD"]
[332841883,1721568643909,-207.87646135,0.00013698,2]
[332842039,1721569648135,-161.94605886,9.999e-05,2]
[332842040,1721569648158,-778.7273512,9.999e-05,2]
[332842041,1721569648180,-155.2508244,9.999e-05,2]
[332842042,1721569648203,-155.17601714,9.999e-05,2]
[332842043,1721569648227,-314.38382103,9.999e-05,2]
[332842044,1721569648250,-158.98097601,9.999e-05,2]
[332842045,1721569648274,-151.43,0.00010959,2]
[332842046,1721569648297,-757.2,0.00010959,2]
[332842047,1721569648320,-367.35615468,0.00013434,2]
[332842048,1721569648343,-620.00029192,0.00013547,2]
[332842049,1721569648368,-758.84685653,0.00013598,2]
[332842050,1721569648390,-747.12899583,0.00013598,2]
[332842051,1721569648415,-360.610439,0.00013598,2]
[332842052,1721569648440,-168.106529,0.00013655,2]
[332842053,1721569648460,-182.829031,0.00013655,2]
[332842054,1721569648483,-5304.19710114,0.00013673,2]
[332842055,1721569648506,-33117.46666268,0.00013688,2]
[332842063,1721569651717,-11343.32754,0.00013688,2]
[332842064,1721569653117,-76152.79303954,0.00013688,2]
[332842183,1721569838910,-287.38831,9.999e-05,2]
[332842190,1721569842356,-233.96177694,9.999e-05,2]
[332842191,1721569842366,-315.53413416,0.00013588,2]
[332842192,1721569842376,-607.07748524,0.00013598,2]
[332842193,1721569842385,-4085.64525865,0.00013678,2]
[332842195,1721569842453,-20039.87205565,0.00013678,2]
[332842196,1721569842462,-3781.31705909,0.00013688,2]
[332842198,1721569842471,-19440.5755278,0.00013688,2]
[332842199,1721569842480,-28080.66520554,0.00013688,2]
[332842246,1721569846762,-10393.11544643,0.00013688,2]
[332842291,1721570753155,-154.74467129,9.999e-05,2]
[332842292,1721570753177,-198.4345538,9.999e-05,2]
[332842293,1721570753198,-928.86992643,9.999e-05,2]
[332842294,1721570753219,-521.35008694,9.999e-05,2]
[332842295,1721570753241,-154.74467129,0.0001,2]
[332842296,1721570753263,-276.09236739,0.00013208,2]
[332842297,1721570753288,-5304.19710114,0.00013232,2]
[332842298,1721570753313,-367.35615468,0.00013272,2]
[332842299,1721570753335,-100000.0,0.000133,2]
[332842300,1721570753358,-21059.49813904,0.0001335,2]
[332842328,1721570835140,-201.8,0.00010959,2]
[332842329,1721570835164,-168.17,0.00010959,2]
[332842330,1721570835187,-840.85,0.00010959,2]
[332842331,1721570835208,-5304.19710114,0.00013164,2]
[332842332,1721570835230,-300.0,0.00013349,2]
[332842333,1721570835252,-12978.96597886,0.0001335,2]
[332842334,1721570840304,-8453.89808564,0.0001335,2]
[332842335,1721570852108,-57507.63779646,0.0001335,2]
[332842336,1721570852133,-204.99359867,0.0001335,2]
[332842337,1721570852155,-218.09499306,0.0001335,2]
[332842338,1721570852176,-1625.30319851,0.0001335,2]
[332842339,1721570852197,-4707.01308214,0.0001335,2]
[332842340,1721570852219,-9219.18587139,0.000134,2]
[332842394,1721571032259,-367.35615468,0.00013266,2]
[332842396,1721571032271,-218.87814547,0.00013389,2]
[332842423,1721571037931,-81.12185453,0.00013389,2]
[332842424,1721571037941,-2116.11684959,0.0001339,2]
[332842426,1721571038023,-47329.61904951,0.0001339,2]
[332842427,1721571038034,-90780.81412861,0.000134,2]
[332842428,1721571038044,-19440.5755278,0.000134,2]
[332842429,1721571038053,-3781.31705909,0.000134,2]
[332842430,1721571038063,-238.66,0.00013588,7]
[332842431,1721571038073,-4069.59080685,0.00013588,2]
[332842432,1721571038083,-1082.17682127,0.00013598,2]
[332842433,1721571038093,-2000.0,0.00013598,2]
[332842434,1721571038103,-705.1331118,0.000136,2]
[332842435,1721571038113,-306.0,0.000136,2]
[332842436,1721571038122,-306.0,0.000136,2]
[332842437,1721571038132,-413.1635146,0.000136,2]
[332842438,1721571038142,-306.0,0.000136,2]
[332842439,1721571038151,-306.0,0.000136,2]
[332842440,1721571038161,-212.211564,0.00013655,2]
[332842441,1721571038172,-173.062724,0.00013655,2]
[332842442,1721571038182,-4069.59080685,0.00013659,2]
[332842443,1721571038192,-38328.90472916,0.00013678,2]
[332842452,1721571042040,-4692.41262574,0.00013678,2]
[332842453,1721571042094,-204207.3621411,0.00013678,2]
[332842454,1721571042105,-151.0,0.00013688,2]
[332842455,1721571042116,-151.0,0.00013688,2]
[332842456,1721571042128,-216.75289,0.00013688,2]
[332842457,1721571042139,-216.75289,0.00013688,2]
[332842458,1721571042149,-846.146685,0.00013688,2]
[332842459,1721571042158,-846.146685,0.00013688,2]
[332842460,1721571042169,-1262.38353865,0.00013698,2]
[332842461,1721571042179,-500.98459521,0.00013698,2]
[332842462,1721571042189,-500.0,0.00013698,2]
[332842463,1721571042200,-500.0,0.00013698,2]
[332842464,1721571042211,-500.0,0.00013698,2]
[332842465,1721571042220,-2054.5,0.00013698,2]
[332842466,1721571042230,-500.0,0.00013698,2]
[332842467,1721571042241,-500.0,0.00013698,2]
[332842468,1721571042251,-500.0,0.00013698,2]
[332842469,1721571042262,-500.0,0.00013698,2]
[332842470,1721571042271,-500.0,0.00013698,2]
[332842471,1721571042281,-628.44,0.00013698,2]
[332842473,1721571042291,-500.0,0.00013698,2]
[332842474,1721571042303,-500.0,0.00013698,2]
[332842475,1721571042312,-500.0,0.00013698,2]
[332842476,1721571042321,-500.0,0.00013698,2]
[332842478,1721571042331,-500.0,0.00013698,2]
[332842479,1721571042340,-700.9,0.00013698,2]
[332842480,1721571042349,-500.0,0.00013698,2]
[332842481,1721571042361,-500.0,0.00013698,2]
[332842482,1721571042370,-500.0,0.00013698,2]
[332842484,1721571042379,-500.0,0.00013698,2]
[332842486,1721571042390,-500.0,0.00013698,2]
[332842488,1721571042399,-500.0,0.00013698,2]
[332842491,1721571042420,-630.92,0.00013698,2]
[332842494,1721571042432,-500.0,0.00013698,2]
[332842497,1721571042445,-620.43759471,0.00013698,2]
[332842501,1721571042455,-1078.09,0.00013698,2]
[332842504,1721571042466,-259.96589553,0.00013698,2]
[332842506,1721571042476,-500.0,0.00013698,2]
[332842507,1721571042486,-816.07,0.00013698,2]
[332842508,1721571042496,-500.0,0.00013698,2]
[332842509,1721571042506,-500.0,0.00013698,2]
[332842510,1721571042518,-582.12759626,0.00013698,2]
[332842512,1721571042528,-550.81118484,0.00013698,2]
[332842514,1721571042538,-503.57721917,0.00013698,2]
[332842516,1721571042547,-500.0,0.00013698,2]
[332842518,1721571042558,-520.4220506,0.00013698,2]
[332842519,1721571042569,-500.0,0.00013698,2]
[332842521,1721571042579,-500.0,0.00013698,2]
[332842523,1721571042588,-627.68,0.00013698,2]
[332842525,1721571042598,-604.38,0.00013698,2]
[332842527,1721571042607,-649.28,0.00013698,2]
[332842529,1721571042617,-2006.04,0.00013698,2]
[332842531,1721571042627,-500.0,0.00013698,2]
[332842533,1721571042636,-502.05371275,0.00013698,2]
[332842535,1721571042646,-500.0,0.00013698,2]
[332842537,1721571042656,-500.0,0.00013698,2]
[332842539,1721571042665,-500.0,0.00013698,2]
[332842542,1721571042675,-500.0,0.00013698,2]
[332842545,1721571042685,-500.0,0.00013698,2]
[332842547,1721571042695,-175.72896542,0.00013698,2]
[332842550,1721571042706,-565.27,0.00013698,2]
[332842552,1721571042717,-527.61,0.00013698,2]
[332842554,1721571042727,-500.0,0.00013698,2]
[332842556,1721571042737,-500.0,0.00013698,2]
[332842558,1721571042747,-500.0,0.00013698,2]
[332842559,1721571042757,-500.0,0.00013698,2]
[332842560,1721571042773,-500.0,0.00013698,2]
[332842561,1721571042783,-500.0,0.00013698,2]
[332842562,1721571042794,-500.0,0.00013698,2]
[332842564,1721571042803,-500.0,0.00013698,2]
[332842566,1721571042813,-666.18,0.00013698,2]
[332842567,1721571042823,-323.02370745,0.00013698,2]
[332842568,1721571042833,-3069.31,0.00013698,2]
[332842569,1721571042843,-859.08,0.00013698,2]
[332842570,1721571042853,-500.0,0.00013698,2]
[332842571,1721571042863,-500.0,0.00013698,2]
[332842572,1721571042873,-500.0,0.00013698,2]
[332842573,1721571042883,-500.0,0.00013698,2]
[332842574,1721571042893,-500.0,0.00013698,2]
[332842575,1721571042903,-505.78855562,0.00013698,2]
[332842576,1721571042913,-506.8348777,0.00013698,2]
[332842577,1721571042923,-500.0,0.00013698,2]
[332842578,1721571042933,-500.0,0.00013698,2]
[332842579,1721571042943,-500.0,0.00013698,2]
[332842580,1721571042953,-1517.82,0.00013698,2]
[332842582,1721571042963,-505.04722869,0.00013698,2]
[332842583,1721571042972,-500.0,0.00013698,2]
[332842585,1721571042982,-500.0,0.00013698,2]
[332842586,1721571042992,-500.0,0.00013698,2]
[332842587,1721571043003,-1176.08,0.00013698,2]
[332842588,1721571043018,-500.0,0.00013698,2]
[332842589,1721571043028,-500.0,0.00013698,2]
[332842590,1721571043037,-500.0,0.00013698,2]
[332842591,1721571043047,-500.0,0.00013698,2]
[332842592,1721571043056,-500.0,0.00013698,2]
[332842593,1721571043065,-501.05158394,0.00013698,2]
[332842594,1721571043076,-500.0,0.00013698,2]
[332842595,1721571043086,-500.0,0.00013698,2]
[332842596,1721571043096,-506.67046312,0.00013698,2]
[332842597,1721571043107,-500.0,0.00013698,2]
[332842598,1721571043117,-500.0,0.00013698,2]
[332842599,1721571043126,-500.0,0.00013698,2]
[332842600,1721571043136,-500.0,0.00013698,2]
[332842601,1721571043146,-500.0,0.00013698,2]
[332842602,1721571043156,-500.0,0.00013698,2]
[332842603,1721571043166,-500.0,0.00013698,2]
[332842604,1721571043176,-500.0,0.00013698,2]
[332842605,1721571043186,-500.0,0.00013698,2]
[332842606,1721571043196,-500.0,0.00013698,2]
[332842607,1721571043206,-500.0,0.00013698,2]
[332842608,1721571043215,-500.0,0.00013698,2]
[332842609,1721571043225,-522.48342793,0.00013698,2]
[332842610,1721571043235,-501.12390469,0.00013698,2]
[332842611,1721571043245,-500.0,0.00013698,2]
[332842612,1721571043256,-500.0,0.00013698,2]
[332842613,1721571043270,-500.0,0.00013698,2]
[332842614,1721571043283,-500.0,0.00013698,2]
[332842615,1721571043293,-500.0,0.00013698,2]
[332842616,1721571043303,-1445.42,0.00013698,2]
[332842617,1721571043313,-500.0,0.00013698,2]
[332842618,1721571043323,-500.0,0.00013698,2]
[332842619,1721571043334,-500.0,0.00013698,2]
[332842620,1721571043343,-500.0,0.00013698,2]
[332842621,1721571043354,-500.0,0.00013698,2]
[332842622,1721571043365,-502.20136358,0.00013698,2]
[332842623,1721571043379,-771.46,0.00013698,2]
[332842624,1721571043389,-2045.09,0.00013698,2]
[332842625,1721571043399,-500.0,0.00013698,2]
[332842626,1721571043411,-500.0,0.00013698,2]
[332842627,1721571043421,-454.66743399,0.00013698,2]
[332842628,1721571043431,-501.19667291,0.00013698,2]
[332842629,1721571043440,-500.0,0.00013698,2]
[332842630,1721571043454,-930.2,0.00013698,2]
[332842631,1721571043464,-500.0,0.00013698,2]
[332842632,1721571043474,-684.13,0.00013698,2]
[332842633,1721571043484,-500.0,0.00013698,2]
[332842634,1721571043495,-500.0,0.00013698,2]
[332842635,1721571043505,-500.0,0.00013698,2]
[332842636,1721571043520,-277.30974389,0.00013698,2]
[332842637,1721571043531,-500.0,0.00013698,2]
[332842638,1721571043541,-500.0,0.00013698,2]
[332842639,1721571043551,-500.99256661,0.00013698,2]
[332842640,1721571043561,-500.0,0.00013698,2]
[332842641,1721571043572,-500.0,0.00013698,2]
[332842642,1721571043582,-500.0,0.00013698,2]
[332842643,1721571043592,-500.0,0.00013698,2]
[332842644,1721571043602,-687.94,0.00013698,2]
[332842645,1721571043612,-500.0,0.00013698,2]
[332842646,1721571043622,-1866.61,0.00013698,2]
[332842647,1721571043632,-500.0,0.00013698,2]
[332842648,1721571043642,-500.0,0.00013698,2]
[332842649,1721571043652,-1337.16,0.00013698,2]
[332842650,1721571043662,-565.6,0.00013698,2]
[332842651,1721571043671,-500.0,0.00013698,2]
[332842652,1721571043682,-500.0,0.00013698,2]
[332842653,1721571043692,-500.0,0.00013698,2]
[332842654,1721571043702,-561.68,0.00013698,2]
[332842655,1721571043713,-723.1,0.00013698,2]
[332842656,1721571043723,-500.0,0.00013698,2]
[332842657,1721571043733,-500.0,0.00013698,2]
[332842658,1721571043743,-500.0,0.00013698,2]
[332842659,1721571043753,-500.0,0.00013698,2]
[332842660,1721571043767,-1520.82,0.00013698,2]
[332842661,1721571043777,-500.0,0.00013698,2]
[332842662,1721571043787,-500.0,0.00013698,2]
[332842663,1721571043797,-500.0,0.00013698,2]
[332842664,1721571043807,-1951.93,0.00013698,2]
[332842665,1721571043816,-2114.25,0.00013698,2]
[332842666,1721571043828,-513.01851565,0.00013698,2]
[332842667,1721571043838,-500.0,0.00013698,2]
[332842668,1721571043849,-500.0,0.00013698,2]
[332842669,1721571043859,-500.0,0.00013698,2]
[332842670,1721571043869,-1164.77,0.00013698,2]
[332842671,1721571043879,-500.0,0.00013698,2]
[332842672,1721571043889,-1320.34,0.00013698,2]
[332842673,1721571043899,-502.62244927,0.00013698,2]
[332842674,1721571043909,-500.0,0.00013698,2]
[332842675,1721571043919,-500.0,0.00013698,2]
[332842676,1721571043929,-744.8,0.00013698,2]
[332842677,1721571043939,-1724.01,0.00013698,2]
[332842678,1721571043949,-501.72351457,0.00013698,2]
[332842679,1721571043959,-500.0,0.00013698,2]
[332842680,1721571043968,-506.48670125,0.00013698,2]
[332842681,1721571043978,-1333.01,0.00013698,2]
[332842682,1721571043989,-500.0,0.00013698,2]
[332842683,1721571043999,-504.86,0.00013698,2]
[332842684,1721571044011,-500.0,0.00013698,2]
[332842685,1721571044022,-500.0,0.00013698,2]
[332842686,1721571044032,-500.0,0.00013698,2]
[332842687,1721571044042,-512.57009351,0.00013698,2]
[332842688,1721571044052,-500.0,0.00013698,2]
[332842689,1721571044062,-500.0,0.00013698,2]
[332842690,1721571044072,-531.31,0.00013698,2]
[332842691,1721571044082,-2564.77,0.00013698,2]
[332842692,1721571044092,-500.0,0.00013698,2]
[332842693,1721571044102,-500.0,0.00013698,2]
[332842694,1721571044112,-503.98,0.00013698,2]
[332842695,1721571044123,-310.08212912,0.00013698,2]
[332842696,1721571044133,-500.0,0.00013698,2]
[332842697,1721571044143,-500.0,0.00013698,2]
[332842698,1721571044153,-1473.72,0.00013698,2]
[332842699,1721571044162,-501.90667774,0.00013698,2]
[332842700,1721571044173,-500.0,0.00013698,2]
[332842701,1721571044183,-500.0,0.00013698,2]
[332842702,1721571044192,-500.0,0.00013698,2]
[332842703,1721571044202,-579.86,0.00013698,2]
[332842704,1721571044212,-500.0,0.00013698,2]
[332842705,1721571044221,-500.0,0.00013698,2]
[332842706,1721571044231,-674.71,0.00013698,2]
[332842707,1721571044241,-500.0,0.00013698,2]
[332842708,1721571044251,-1005.89,0.00013698,2]
[332842709,1721571044265,-500.0,0.00013698,2]
[332842710,1721571044274,-500.0,0.00013698,2]
[332842711,1721571044283,-500.0,0.00013698,2]
[332842712,1721571044540,-500.0,0.00013698,2]
[332842713,1721571044556,-500.0,0.00013698,2]
[332842714,1721571044567,-515.01040945,0.00013698,2]
[332842715,1721571044576,-500.0,0.00013698,2]
[332842716,1721571044586,-500.0,0.00013698,2]
[332842717,1721571044595,-500.0,0.00013698,2]
[332842718,1721571044605,-5550.3,0.00013698,2]
[332842719,1721571044614,-181.62960455,0.00013698,2]
[332842720,1721571044624,-507.11998073,0.00013698,2]
[332842721,1721571044634,-1341.62,0.00013698,2]
[332842722,1721571044644,-500.0,0.00013698,2]
[332842723,1721571044653,-500.0,0.00013698,2]
[332842724,1721571044662,-1204.73,0.00013698,2]
[332842725,1721571044672,-500.0,0.00013698,2]
[332842726,1721571044681,-338.11479254,0.00013698,2]
[332842727,1721571044690,-500.0,0.00013698,2]
[332842728,1721571044699,-500.0,0.00013698,2]
[332842729,1721571044709,-12941.36,0.00013698,2]
[332842730,1721571044717,-1907.18,0.00013698,2]
[332842731,1721571044727,-500.0,0.00013698,2]
[332842732,1721571044737,-3689.8,0.00013698,2]
[332842733,1721571044746,-502.0283174,0.00013698,2]
[332842734,1721571044758,-500.0,0.00013698,2]
[332842735,1721571044770,-500.0,0.00013698,2]
[332842736,1721571044781,-500.0,0.00013698,2]
[332842737,1721571044791,-1624.15,0.00013698,2]
[332842738,1721571044800,-3041.94,0.00013698,2]
[332842739,1721571044811,-1054.8,0.00013698,2]
[332842740,1721571044821,-500.0,0.00013698,2]
[332842741,1721571044830,-500.0,0.00013698,2]
[332842742,1721571044841,-2090.47,0.00013698,2]
[332842743,1721571044850,-500.0,0.00013698,2]
[332842744,1721571044860,-500.0,0.00013698,2]
[332842745,1721571044870,-1806.74,0.00013698,2]
[332842746,1721571044879,-2202.13,0.00013698,2]
[332842747,1721571044889,-500.0,0.00013698,2]
[332842748,1721571044899,-500.0,0.00013698,2]
[332842749,1721571044910,-500.0,0.00013698,2]
[332842750,1721571044920,-500.0,0.00013698,2]
[332842751,1721571044930,-500.0,0.00013698,2]
[332842752,1721571044940,-500.0,0.00013698,2]
[332842753,1721571044950,-4016.4,0.00013698,2]
[332842754,1721571044960,-501.53988826,0.00013698,2]
[332842755,1721571044969,-2213.48,0.00013698,2]
[332842756,1721571044980,-511.49203495,0.00013698,2]
[332842757,1721571044989,-500.0,0.00013698,2]
[332842758,1721571044999,-500.0,0.00013698,2]
[332842759,1721571045008,-500.0,0.00013698,2]
[332842760,1721571045022,-500.0,0.00013698,2]
[332842761,1721571045032,-500.0,0.00013698,2]
[332842762,1721571045042,-500.0,0.00013698,2]
[332842763,1721571045052,-2197.7,0.00013698,2]
[332842764,1721571045062,-500.0,0.00013698,2]
[332842765,1721571045072,-1723.55,0.00013698,2]
[332842766,1721571045082,-500.0,0.00013698,2]
[332842767,1721571045092,-643.77653392,0.00013698,2]
[332842768,1721571045101,-500.0,0.00013698,2]
[332842769,1721571045111,-652.01,0.00013698,2]
[332842770,1721571045121,-5397.5,0.00013698,2]
[332842771,1721571045130,-1092.54,0.00013698,2]
[332842772,1721571045140,-500.0,0.00013698,2]
[332842773,1721571045150,-500.0,0.00013698,2]
[332842774,1721571045159,-500.0,0.00013698,2]
[332842775,1721571045169,-993.63,0.00013698,2]
[332842776,1721571045179,-917.62,0.00013698,2]
[332842777,1721571045189,-500.0,0.00013698,2]
[332842778,1721571045199,-500.0,0.00013698,2]
[332842779,1721571045209,-500.0,0.00013698,2]
[332842780,1721571045219,-1170.03,0.00013698,2]
[332842781,1721571045229,-309.18495205,0.00013698,2]
[332842782,1721571045239,-716.45,0.00013698,2]
[332842783,1721571045248,-4132.02,0.00013698,2]
[332842784,1721571045258,-500.0,0.00013698,2]
[332842785,1721571045274,-500.0,0.00013698,2]
[332842786,1721571045283,-500.0,0.00013698,2]
[332842787,1721571045293,-500.0,0.00013698,2]
[332842788,1721571045303,-2222.11,0.00013698,2]
[332842789,1721571045315,-818.39,0.00013698,2]
[332842791,1721571045325,-500.0,0.00013698,2]
[332842793,1721571045335,-935.93,0.00013698,2]
[332842795,1721571045344,-7400.98,0.00013698,2]
[332842797,1721571045354,-930.77,0.00013698,2]
[332842799,1721571045365,-500.0,0.00013698,2]
[332842800,1721571045376,-500.0,0.00013698,2]
[332842802,1721571045386,-500.0,0.00013698,2]
[332842804,1721571045395,-500.0,0.00013698,2]
[332842806,1721571045407,-500.0,0.00013698,2]
[332842808,1721571045416,-850.61,0.00013698,2]
[332842809,1721571045426,-500.0,0.00013698,2]
[332842811,1721571045435,-500.0,0.00013698,2]
[332842813,1721571045444,-500.0,0.00013698,2]
[332842814,1721571045454,-734.72,0.00013698,2]
[332842816,1721571045464,-500.0,0.00013698,2]
[332842818,1721571045473,-500.0,0.00013698,2]
[332842819,1721571045482,-500.0,0.00013698,2]
[332842822,1721571045492,-1669.97,0.00013698,2]
[332842824,1721571045501,-500.0,0.00013698,2]
[332842826,1721571045515,-552.12,0.00013698,2]
[332842828,1721571045524,-930.18,0.00013698,2]
[332842829,1721571045534,-500.0,0.00013698,2]
[332842830,1721571045543,-500.0,0.00013698,2]
[332842831,1721571045553,-827.41,0.00013698,2]
[332842832,1721571045563,-500.0,0.00013698,2]
[332842834,1721571045572,-500.0,0.00013698,2]
[332842836,1721571045582,-1082.74,0.00013698,2]
[332842838,1721571045591,-1077.15,0.00013698,2]
[332842840,1721571045601,-2665.28,0.00013698,2]
[332842842,1721571045610,-1492.38,0.00013698,2]
[332842844,1721571045619,-500.0,0.00013698,2]
[332842846,1721571045629,-500.0,0.00013698,2]
[332842848,1721571045638,-1378.02,0.00013698,2]
[332842850,1721571045648,-479.0328799,0.00013698,2]
[332842853,1721571045658,-500.0,0.00013698,2]
[332842855,1721571045668,-1450.96,0.00013698,2]
[332842857,1721571045678,-500.0,0.00013698,2]
[332842859,1721571045687,-500.0,0.00013698,2]
[332842861,1721571045698,-500.0,0.00013698,2]
[332842863,1721571045707,-500.0,0.00013698,2]
[332842864,1721571045717,-500.0,0.00013698,2]
[332842865,1721571045726,-559.28,0.00013698,2]
[332842866,1721571045736,-776.21,0.00013698,2]
[332842867,1721571045745,-2703.39,0.00013698,2]
[332842868,1721571045754,-500.0,0.00013698,2]
[332842869,1721571045766,-508.21,0.00013698,2]
[332842870,1721571045776,-722.53,0.00013698,2]
[332842871,1721571045785,-1011.22,0.00013698,2]
[332842872,1721571045794,-500.0,0.00013698,2]
[332842873,1721571045803,-504.89101976,0.00013698,2]
[332842874,1721571045815,-500.0,0.00013698,2]
[332842875,1721571045825,-521.74,0.00013698,2]
[332842876,1721571045834,-500.0,0.00013698,2]
[332842879,1721571045844,-1538.99,0.00013698,2]
[332842882,1721571045854,-1744.99,0.00013698,2]
[332842884,1721571045863,-500.0,0.00013698,2]
[332842885,1721571045873,-500.0,0.00013698,2]
[332842887,1721571045883,-10125.34,0.00013698,2]
[332842889,1721571045893,-923.66,0.00013698,2]
[332842891,1721571045902,-500.0,0.00013698,2]
[332842892,1721571045911,-500.0,0.00013698,2]
[332842893,1721571045921,-6120.44,0.00013698,2]
[332842894,1721571045931,-767.77,0.00013698,2]
[332842896,1721571045940,-4491.18,0.00013698,2]
[332842898,1721571045950,-500.0,0.00013698,2]
[332842899,1721571045959,-1883.32,0.00013698,2]
[332842901,1721571045969,-500.0,0.00013698,2]
[332842903,1721571045978,-556.62,0.00013698,2]
[332842904,1721571045987,-500.0,0.00013698,2]
[332842905,1721571045997,-500.0,0.00013698,2]
[332842906,1721571046007,-500.0,0.00013698,2]
[332842908,1721571046020,-500.0,0.00013698,2]
[332842909,1721571046030,-500.0,0.00013698,2]
[332842910,1721571046040,-500.0,0.00013698,2]
[332842912,1721571046049,-500.0,0.00013698,2]
[332842913,1721571046058,-710.76,0.00013698,2]
[332842915,1721571046067,-763.56,0.00013698,2]
[332842917,1721571046078,-3281.33,0.00013698,2]
[332842919,1721571046087,-638.5,0.00013698,2]
[332842920,1721571046097,-4482.68,0.00013698,2]
[332842921,1721571046106,-644.61,0.00013698,2]
[332842922,1721571046115,-850.61,0.00013698,2]
[332842923,1721571046125,-500.0,0.00013698,2]
[332842924,1721571046135,-500.0,0.00013698,2]
[332842925,1721571046144,-648.14,0.00013698,2]
[332842926,1721571046157,-2313.44,0.00013698,2]
[332842927,1721571046166,-1229.93,0.00013698,2]
[332842928,1721571046175,-6955.44,0.00013698,2]
[332842929,1721571046185,-500.0,0.00013698,2]
[332842930,1721571046194,-500.0,0.00013698,2]
[332842931,1721571046203,-5865.42,0.00013698,2]
[332842932,1721571046213,-500.0,0.00013698,2]
[332842933,1721571046222,-500.0,0.00013698,2]
[332842934,1721571046231,-500.0,0.00013698,2]
[332842935,1721571046241,-500.0,0.00013698,2]
[332842936,1721571046251,-500.0,0.00013698,2]
[332842937,1721571046262,-877.65,0.00013698,2]
[332842938,1721571046272,-500.0,0.00013698,2]
[332842939,1721571046281,-500.0,0.00013698,2]
[332842940,1721571046291,-500.0,0.00013698,2]
[332842941,1721571046301,-500.0,0.00013698,2]
[332842942,1721571046310,-500.0,0.00013698,2]
[332842943,1721571046320,-500.0,0.00013698,2]
[332842944,1721571046329,-198.97929817,0.00013698,2]
[332842945,1721571046339,-500.0,0.00013698,2]
[332842946,1721571046348,-389.65926264,0.00013698,2]
[332842947,1721571046357,-287.8740586,0.00013698,2]
[332842948,1721571046367,-505.12,0.00013698,2]
[332842949,1721571046377,-500.0,0.00013698,2]
[332842950,1721571046388,-500.0,0.00013698,2]
[332842951,1721571046397,-500.0,0.00013698,2]
[332842952,1721571046407,-500.0,0.00013698,2]
[332842953,1721571046417,-519.25,0.00013698,2]
[332842954,1721571046426,-500.0,0.00013698,2]
[332842955,1721571046436,-500.0,0.00013698,2]
[332842956,1721571046446,-500.0,0.00013698,2]
[332842957,1721571046456,-500.0,0.00013698,2]
[332842958,1721571046468,-500.0,0.00013698,2]
[332842959,1721571046477,-500.0,0.00013698,2]
[332842960,1721571046487,-500.0,0.00013698,2]
[332842961,1721571046496,-500.0,0.00013698,2]
[332842962,1721571046506,-500.0,0.00013698,2]
[332842963,1721571046518,-500.0,0.00013698,2]
[332842964,1721571046527,-541.72015589,0.00013698,2]
[332842965,1721571046537,-500.0,0.00013698,2]
[332842966,1721571046547,-500.0,0.00013698,2]
[332842967,1721571046556,-513.99016088,0.00013698,2]
[332842968,1721571046566,-500.0,0.00013698,2]
[332842969,1721571046575,-500.0,0.00013698,2]
[332842970,1721571046584,-538.97931944,0.00013698,2]
[332842971,1721571046593,-831.66,0.00013698,2]
[332842972,1721571046603,-458.59404829,0.00013698,2]
[332842973,1721571046613,-575.57,0.00013698,2]